bitfinex/quotes_ETHUSD_20241223
["timestamp","ask_amount","ask_price","bid_price","bid_amount"]
[1734975270709,0.4116593,3368.2,3367.5,0.03141329]
[1734975271436,2.96912,3368.0,3367.5,0.03141329]
[1734975271749,3.73363,3367.7,3366.7,2.97025]
[1734975272041,0.7642,3367.5,3366.8,0.03179143]
[1734975272548,0.7642,3367.5,3366.9,0.0317374]
[1734975272712,0.7642,3367.5,3366.5,2.97044]
[1734975272908,0.7642,3367.5,3366.6,0.03189949]
[1734975273222,0.373367,3367.4,3366.6,0.03189949]
[1734975273433,0.02979118,3367.3,3366.7,2.97019]
[1734975273623,0.7642,3367.5,3366.7,2.97019]
[1734975273946,0.7642,3367.5,3366.8,0.03249025]
[1734975274353,0.57979118,3367.4,3366.8,0.03249025]
[1734975274648,0.57979118,3367.4,3366.2,2.81144167]
[1734975274649,0.55,3367.2,3366.2,2.81144167]
[1734975274808,0.8135,3367.0,3366.2,2.81144167]
[1734975275011,0.02979118,3367.1,3365.0,7.47640692]
[1734975275012,3.52035,3366.7,3365.6,2.97123]
[1734975275244,0.4661553,3366.6,3365.6,2.97123]
[1734975275450,0.4661553,3366.6,3365.1,7.47640692]
[1734975275451,3.00016118,3366.6,3365.7,0.03308478]
[1734975275609,0.8135,3366.5,3365.7,0.03308478]
[1734975275811,0.8135,3366.9,3365.3,10.24111741]
[1734975276010,0.8135,3366.9,3366.6,2.97027]
[1734975276433,0.8135,3366.9,3366.7,0.03281363]
[1734975276714,0.8135,3367.8,3366.7,0.03281363]
[1734975276912,0.74736797,3367.7,3366.7,2.97024]
[1734975277150,0.71757679,3367.7,3366.8,0.03162902]
[1734975277366,0.8135,3367.8,3366.7,2.97026]
[1734975277662,0.8135,3367.8,3367.3,2.96972]
[1734975277862,0.38186812,3368.2,3366.8,0.03162902]
[1734975277863,0.02979118,3367.7,3366.8,0.03162902]
[1734975278040,0.8135,3367.6,3367.4,0.03104834]
[1734975278238,0.8135,3367.6,3366.1,3.0]
[1734975278442,0.8135,3367.6,3366.7,2.97026]
[1734975278844,0.8135,3367.6,3366.3,2.97062]
[1734975278845,0.84329118,3367.6,3366.9,2.97008]
[1734975279069,0.84329118,3367.6,3366.8,0.03135086]
[1734975279070,0.8135,3367.6,3367.1,2.96989]
[1734975279244,0.8135,3367.6,3367.0,3.00122001]
[1734975279443,0.8135,3367.6,3367.2,0.03114917]
[1734975279664,0.02979118,3367.5,3367.1,0.03119959]
[1734975279846,0.38128312,3367.4,3366.5,2.97043]
[1734975280061,0.38128312,3367.4,3367.2,0.03114917]
[1734975280356,0.38128312,3367.4,3366.5,2.97043]
[1734975280357,0.93128312,3367.4,3367.3,0.03109876]
[1734975280531,1.73678312,3367.4,3366.5,2.97043]
[1734975280840,1.18678312,3367.4,3366.6,3.00179173]
[1734975281043,1.18678312,3367.4,3366.6,0.03145173]
[1734975281257,0.8055,3367.4,3366.6,0.03145173]
[1734975281456,0.8055,3367.4,3366.4,2.97048]
[1734975281659,0.8055,3367.4,3366.8,2.97009]
[1734975282058,0.8055,3367.4,3366.9,0.03130044]
[1734975283263,0.8055,3367.4,3366.9,3.00135044]
[1734975283761,0.8055,3367.4,3366.9,0.03130044]
[1734975284084,0.8055,3367.4,3366.7,2.97024]
[1734975284301,0.8055,3367.4,3367.0,0.03125001]
[1734975284482,0.02979118,3367.3,3366.3,2.97059]
[1734975284784,0.02979118,3367.3,3366.0,3.0]
[1734975284785,0.8055,3367.4,3366.0,3.0]
[1734975284984,0.40730418,3367.3,3366.4,0.03151517]
[1734975285152,2.99954118,3367.3,3366.2,2.9707]
[1734975285354,3.74485,3367.2,3366.3,0.0338203]
[1734975285666,0.02979118,3367.1,3365.8,2.97102]
[1734975286072,0.775,3366.9,3365.9,0.03187438]
[1734975286261,0.775,3366.9,3365.9,3.00284438]
[1734975286262,0.4072783,3366.8,3365.9,3.00284438]
[1734975286466,0.4072783,3366.8,3365.9,2.97097]
[1734975286678,0.4072783,3366.8,3366.0,0.03182392]
[1734975286886,0.765,3366.6,3366.0,0.03182392]
[1734975287092,0.765,3366.5,3366.0,0.03182392]
[1734975287296,0.765,3366.5,3365.8,2.97105]
[1734975287499,0.765,3366.5,3366.1,0.03177347]
[1734975287670,0.765,3366.5,3366.0,2.97086]
[1734975287863,0.765,3366.5,3366.2,0.03172302]
[1734975288209,0.79479118,3367.3,3365.7,7.47640692]
[1734975288542,3.76453118,3367.3,3366.2,2.97063]
[1734975288809,2.97027,3366.7,3366.3,0.03196681]
[1734975288992,0.86099118,3366.6,3366.3,0.03196681]
[1734975289174,0.86099118,3366.6,3365.4,2.97141]
[1734975289507,0.86099118,3366.6,3366.4,0.03192707]
[1734975289508,3.52044,3366.5,3366.4,0.03192707]
[1734975289686,3.80173,3366.4,3365.4,2.97141]
[1734975289867,0.4679433,3366.3,3365.4,2.97141]
[1734975290071,0.4679433,3366.3,3365.5,0.03238116]
[1734975290767,0.43815212,3366.3,3365.5,0.03238116]
[1734975292321,0.8312,3366.1,3365.5,0.03238116]
[1734975292601,0.8312,3366.1,3365.4,2.97138]
[1734975292756,0.8312,3366.1,3365.6,0.03233069]
[1734975292955,0.8312,3366.1,3365.4,2.97138]
[1734975293175,0.8312,3366.1,3365.5,0.03238116]
[1734975294807,0.42399721,3366.0,3365.5,0.03238116]
[1734975295002,0.8312,3366.1,3365.4,0.02971306]
[1734975295158,0.7858,3367.0,3365.6,3.00356069]
[1734975295357,2.97018,3366.8,3365.8,2.97098]
[1734975295664,0.7858,3366.6,3365.9,0.03250039]
[1734975295876,0.37857712,3366.5,3365.9,0.03250039]
[1734975297578,0.7858,3366.6,3365.9,0.06221013]
[1734975297891,0.831,3367.0,3366.8,2.97015]
[1734975298199,4.32070033,3367.9,3366.8,2.97015]
[1734975298200,0.831,3367.8,3366.9,0.03180332]
[1734975298403,2.96939,3367.7,3366.9,0.03180332]
[1734975298564,0.54795633,3367.6,3366.9,0.03180332]
[1734975298768,0.54795633,3367.6,3366.7,2.97024]
[1734975298969,0.51816515,3367.6,3366.8,0.03185374]
[1734975299199,0.51816515,3367.6,3366.4,2.97053]
[1734975299399,0.51816515,3367.6,3366.9,0.03180332]
[1734975299599,0.43789563,3367.5,3366.8,2.97015]
[1734975299815,0.43789563,3367.5,3367.0,0.03175289]
[1734975300008,0.43789563,3367.5,3366.9,0.03180332]
[1734975300316,0.43789563,3367.5,3367.1,0.03170247]
[1734975300505,0.43789563,3367.5,3367.0,0.03175289]
[1734975300830,0.831,3367.8,3367.1,0.03170247]
[1734975301207,0.831,3367.8,3366.6,2.97035]
[1734975301397,0.831,3367.8,3366.8,2.97015]
[1734975301715,0.86079118,3367.8,3366.8,2.97016]
[1734975302023,0.86079118,3367.8,3366.9,0.03180332]
[1734975302230,0.22122615,3367.7,3366.9,0.03180332]
[1734975302380,0.02979118,3367.6,3366.7,2.97018]
[1734975302583,0.22122615,3367.7,3366.8,0.03185374]
[1734975303039,0.831,3367.8,3367.0,2.96992]
[1734975303182,0.831,3367.8,3366.4,5.94106]
[1734975303381,0.831,3367.8,3367.1,2.9699]
[1734975303630,0.831,3367.8,3367.2,0.03130972]
[1734975303954,0.22122615,3367.7,3367.2,0.03130972]
[1734975304156,0.22122615,3367.7,3366.3,7.47640692]
[1734975304448,0.7603,3366.6,3366.5,2.56055346]
[1734975304790,0.7603,3366.6,3366.5,2.59117419]
[1734975305110,6.31471049,3367.4,3366.5,5.56158419]
[1734975305111,0.7603,3367.0,3366.5,5.56158419]
[1734975305308,0.7603,3367.6,3366.9,2.97006]
[1734975305509,0.02979118,3367.5,3366.5,2.59117419]
[1734975305709,0.02979118,3367.5,3366.4,1.20022338]
[1734975305710,0.55,3367.3,3367.0,0.03209067]
[1734975305917,0.7603,3367.0,3365.6,3.0313]
[1734975306409,3.73037,3367.0,3365.9,2.9709]
[1734975306610,0.37601612,3366.9,3365.9,2.9709]
[1734975306801,0.37601612,3366.9,3366.0,3.00357704]
[1734975307042,0.7603,3367.0,3366.1,0.02970633]
[1734975307246,0.7603,3367.0,3366.2,2.97069]
[1734975307448,0.7603,3367.0,3366.2,3.00343076]
[1734975307608,0.7603,3367.0,3366.2,0.03274076]
[1734975308011,0.7603,3367.0,3366.0,2.97085]
[1734975308230,0.37600012,3366.9,3366.3,0.03268671]
[1734975308391,0.37600012,3366.9,3366.0,2.97085]
[1734975308593,0.37600012,3366.9,3366.1,0.03279481]
[1734975308789,0.7603,3367.0,3365.8,2.97106]
[1734975309106,0.7603,3367.0,3366.1,2.97071]
[1734975309493,0.7603,3367.0,3366.2,0.03274076]
[1734975309689,0.57979118,3366.9,3366.2,0.03274076]
[1734975309928,2.97047,3366.5,3366.2,0.03274076]
[1734975310128,2.97075,3366.2,3365.4,1.20022338]
[1734975311029,0.7848,3366.3,3365.5,2.97132]
[1734975311231,0.7848,3366.3,3365.3,2.97149]
[1734975311787,3.75547,3366.3,3365.3,2.97149]
[1734975312094,2.96985,3367.2,3366.1,2.97074]
[1734975312292,3.62099605,3367.1,3366.1,2.97074]
[1734975312530,3.62099605,3367.1,3366.2,0.03082022]
[1734975312730,0.65105605,3367.1,3366.2,3.03114606]
[1734975313030,1.22418102,3367.2,3366.2,0.03082022]
[1734975313190,0.02979118,3367.0,3366.2,0.03082022]
[1734975313395,2.97034,3366.7,3365.9,7.47640692]
[1734975313595,2.97034,3366.7,3366.0,0.0334679]
[1734975313828,0.8033,3366.9,3366.0,3.0043279]
[1734975314133,0.8033,3366.9,3366.0,4.17242372]
[1734975314437,0.02979118,3366.8,3366.0,0.0334679]
[1734975314594,3.55000118,3366.8,3366.0,0.0334679]
[1734975314799,2.97045,3366.5,3365.4,4.20293338]
[1734975315030,2.97045,3366.5,3366.1,0.03324187]
[1734975315234,2.97045,3366.5,3365.5,2.97132]
[1734975315444,0.30002412,3366.4,3366.2,0.03318781]
[1734975315646,0.30002412,3366.4,3365.5,2.97132]
[1734975315851,0.30002412,3366.4,3366.3,0.03313377]
[1734975316049,0.30002412,3366.4,3365.5,2.97132]
[1734975316350,2.97027,3366.7,3365.6,2.97121]
[1734975316493,2.9702,3366.8,3365.6,0.03351218]
[1734975317251,2.9702,3366.8,3365.8,2.97101]
[1734975317695,2.9702,3366.8,3365.9,0.03353915]
[1734975318733,2.97026,3366.7,3365.9,0.03353915]
[1734975318937,0.38033512,3366.6,3365.6,2.97121]
[1734975319100,0.38033512,3366.6,3366.0,0.03349083]
[1734975319296,0.38033512,3366.6,3365.4,1.23152338]
[1734975319297,0.4101263,3366.6,3365.4,1.23152338]
[1734975319506,0.8145,3366.5,3366.1,0.03343677]
[1734975319712,0.8145,3366.5,3365.5,2.97131]
[1734975319933,0.8145,3366.5,3366.2,0.03338272]
[1734975320098,0.8145,3366.5,3365.5,2.97131]
[1734975320099,3.78498,3366.5,3365.5,2.97131]
[1734975320436,3.78498,3366.5,3365.6,0.03370708]
[1734975320599,0.38147712,3366.4,3365.6,0.03370708]
[1734975321004,0.55,3366.1,3365.6,0.03370708]
[1734975321311,2.97115,3365.7,3365.6,0.03370708]
[1734975321498,2.97115,3365.7,3365.0,1.20022338]
[1734975321499,2.97124,3365.6,3365.0,1.20022338]
[1734975321815,0.372644,3365.5,3365.1,0.03176582]
[1734975322554,0.02979118,3365.6,3365.1,0.03176582]
[1734975322712,2.97131,3365.6,3365.1,0.03176582]
[1734975323217,2.97131,3365.6,3364.6,2.97209]
[1734975323416,2.97131,3365.6,3365.2,0.03204718]
[1734975323616,2.97131,3365.6,3364.6,2.97209]
[1734975323958,0.40244218,3365.5,3365.3,0.0319967]
[1734975324258,0.40244218,3365.5,3364.5,0.1699386]
[1734975324259,2.9718,3365.0,3364.5,0.1699386]
[1734975324435,3.77156,3364.8,3364.5,0.1699386]
[1734975324753,0.7996,3364.8,3364.6,0.03347975]
[1734975325055,0.7996,3364.8,3364.5,0.1699386]
[1734975325219,0.7996,3364.8,3364.7,0.03342565]
[1734975325417,0.7996,3364.8,3364.5,0.1699386]
[1734975325418,1.176746,3364.8,3364.6,0.03124776]
[1734975325752,0.7996,3364.8,3364.5,0.1699386]
[1734975325964,3.0,3365.4,3364.7,0.03342565]
[1734975325965,3.7996,3365.4,3364.7,0.03342565]
[1734975326191,3.7996,3365.4,3364.8,2.97187]
[1734975326192,0.7996,3365.4,3364.8,2.97187]
[1734975326391,1.22418102,3365.6,3365.3,2.97142]
[1734975326694,1.22418102,3365.6,3364.7,7.47640692]
[1734975326695,1.22418102,3365.6,3365.4,0.03304703]
[1734975326988,1.22418102,3365.6,3365.2,2.97158]
[1734975327196,1.22418102,3365.6,3365.3,0.03089437]
[1734975327197,0.66154336,3365.6,3365.3,0.03089437]
[1734975327349,0.7983,3365.8,3365.3,0.03089437]
[1734975327350,2.97118,3365.7,3365.3,0.03089437]
[1734975327540,2.97118,3365.7,3364.7,10.44840692]
[1734975327787,0.7983,3365.8,3364.7,7.47640692]
[1734975327936,0.7983,3365.8,3364.9,2.97178]
[1734975328143,0.02979118,3365.7,3364.8,0.03409419]
[1734975328338,1.175217,3365.8,3365.0,2.97176]
[1734975328538,0.7983,3365.8,3365.0,2.97176]
[1734975328741,0.7983,3365.8,3365.1,0.03393192]
[1734975329053,0.02979118,3365.7,3365.1,0.03393192]
[1734975329450,3.00095118,3365.7,3364.7,7.47640692]
[1734975329755,2.97116,3365.7,3365.2,0.03161931]
[1734975329975,0.376946,3365.6,3364.7,7.47640692]
[1734975330183,0.376946,3365.6,3365.3,0.03156884]
[1734975330340,0.7983,3365.8,3365.0,2.97174]
[1734975330742,0.7983,3365.8,3365.1,0.03166979]
[1734975331460,0.7983,3365.8,3365.2,0.03274677]
[1734975331855,0.7983,3365.8,3365.1,2.97166]
[1734975332104,0.7983,3365.8,3365.3,0.07753715]
[1734975332280,0.7983,3365.8,3365.2,0.07758903]
[1734975332458,0.7716,3365.5,3365.4,0.07748528]
[1734975332662,4.67932135,3365.5,3365.4,0.07748528]
[1734975332985,4.67932135,3365.5,3364.5,0.1699386]
[1734975332986,3.90772135,3365.5,3364.5,0.1699386]
[1734975333298,2.97173,3365.1,3364.6,0.07790033]
[1734975333456,0.02979118,3365.0,3364.6,0.07790033]
[1734975333639,2.97166,3365.2,3364.5,0.1699386]
[1734975333842,2.97178,3365.0,3364.7,0.07784844]
[1734975334144,0.7716,3364.8,3364.5,0.1699386]
[1734975334376,0.67445012,3365.1,3364.5,0.1699386]
[1734975334754,0.67445012,3365.1,3364.6,0.07809842]
[1734975334979,0.7716,3365.2,3364.5,3.1421386]
[1734975335172,0.7716,3365.7,3364.8,2.97185]
[1734975335576,2.97152,3365.3,3364.9,0.07803914]
[1734975335897,0.02979118,3365.2,3364.5,0.1699386]
[1734975336082,2.97169,3365.1,3364.5,0.1699386]
[1734975336282,0.7716,3365.5,3364.5,0.1699386]
[1734975336283,2.97187,3364.9,3364.6,0.0781948]
[1734975336465,0.7974,3364.7,3364.6,0.0781948]
[1734975336669,0.7974,3364.7,3364.5,0.1699386]
[1734975337066,0.7974,3364.7,3364.6,0.0781948]
[1734975337606,3.76943,3364.7,3364.6,0.0781948]
[1734975337747,4.17936693,3364.7,3364.5,0.1699386]
[1734975337948,2.97212,3364.6,3364.5,0.1699386]
[1734975338201,4.28342,3364.6,3364.5,0.1699386]
[1734975339419,0.7583,3363.7,3363.2,1.20022338]
[1734975339711,0.7583,3363.7,3362.6,0.0313]
[1734975339712,2.97304,3363.6,3362.6,0.0313]
[1734975339851,2.97304,3363.6,3363.3,0.07913207]
[1734975340058,3.73122,3363.7,3362.6,3.00517]
[1734975340254,2.97303,3363.6,3362.6,3.00517]
[1734975340449,2.97303,3363.6,3362.7,0.07944373]
[1734975340653,0.373133,3363.5,3362.7,0.07944373]
[1734975342214,0.373133,3363.5,3362.4,2.97403]
[1734975342507,0.373133,3363.5,3362.8,0.07939178]
[1734975342657,0.373133,3363.5,3362.5,2.97396]
[1734975342856,0.373133,3363.5,3362.9,0.07933983]
[1734975343090,0.4104463,3363.4,3362.5,2.97396]
[1734975343610,3.41342748,3363.4,3362.6,0.07949568]
[1734975343817,3.41342748,3363.4,3362.3,2.97414]
[1734975343974,3.41342748,3363.4,3361.8,2.97451]
[1734975343975,0.7574,3363.3,3362.4,0.08033889]
[1734975344176,2.97354,3363.0,3361.9,2.9745]
[1734975344506,0.4058643,3362.9,3362.0,0.08056283]
[1734975344674,0.37607312,3362.9,3362.0,0.08056283]
[1734975344913,3.3794943,3362.9,3361.9,2.97449]
[1734975345068,3.3794943,3362.9,3362.1,0.08051086]
[1734975345411,0.37607312,3362.9,3362.2,0.08045889]
[1734975345614,0.4058643,3362.9,3361.9,2.97449]
[1734975345755,0.41367943,3362.8,3361.9,2.97449]
[1734975345960,0.41367943,3362.8,3362.0,0.08056283]
[1734975346322,0.78719118,3362.7,3362.0,0.08056283]
[1734975346615,2.97388,3362.6,3361.6,1.25]
[1734975346910,0.78719118,3362.7,3361.7,0.08128169]
[1734975346911,0.37610712,3362.5,3361.7,0.08128169]
[1734975347123,2.97416,3362.3,3361.7,0.08128169]
[1734975347279,0.02979118,3362.2,3361.7,0.08128169]
[1734975348362,2.97434,3362.1,3361.7,0.08128169]
[1734975349107,0.7574,3362.0,3361.7,0.08128169]
[1734975349305,2.97459,3361.8,3361.7,0.08128169]
[1734975349469,0.373174,3361.9,3361.7,0.08128169]
[1734975349675,0.373174,3361.9,3361.6,1.25]
[1734975350075,0.373174,3361.9,3361.7,0.08128169]
[1734975350288,0.373174,3361.9,3361.6,1.25]
[1734975350491,0.4105004,3361.8,3361.6,1.25]
[1734975350868,4.32848,3361.7,3361.6,1.25]
[1734975351069,7.32848,3361.7,3361.6,1.25]
[1734975352494,6.77848,3361.7,3361.6,1.25]
[1734975352692,0.8038,3361.7,3361.6,1.25]
[1734975352892,4.50170109,3361.7,3361.6,1.25]
[1734975353094,4.50170109,3361.7,3361.6,0.4167]
[1734975353095,8.02638109,3361.7,3361.6,0.4167]
[1734975353399,7.32883,3361.3,3361.2,0.1699293]
[1734975353595,10.09354049,3361.3,3361.2,0.1699293]
[1734975353795,10.85037954,3361.3,3361.2,0.1699293]
[1734975354130,7.87534954,3361.3,3361.2,0.1699293]
[1734975354306,0.8038,3361.3,3361.2,0.1699293]
[1734975355135,3.77883,3361.3,3361.2,0.1699293]
[1734975355336,0.8038,3361.3,3361.2,0.1699293]
[1734975357088,1.3264,3361.7,3361.2,0.25427054]
[1734975357438,5.97442,3362.0,3361.2,0.25427054]
[1734975357616,0.7764,3362.0,3361.2,0.1699293]
[1734975357892,0.7764,3362.0,3361.3,0.08420335]
[1734975358115,0.02979118,3361.9,3361.3,0.08420335]
[1734975358322,3.75135,3361.4,3361.3,0.08420335]
[1734975358528,0.7764,3361.4,3361.2,0.1699293]
[1734975359259,3.75136,3361.4,3361.2,0.1699293]
[1734975359410,0.7764,3361.4,3361.2,0.1699293]
[1734975359613,3.78792,3361.9,3361.2,0.1699293]
[1734975359976,3.00438118,3361.9,3361.2,0.39501223]
[1734975360094,0.02979118,3361.9,3361.2,0.1699293]
[1734975360294,2.97495,3361.4,3361.3,0.08406915]
[1734975360530,2.97474,3361.7,3361.2,0.1699293]
[1734975360693,3.52201049,3362.1,3361.2,0.1699293]
[1734975360694,2.97451,3361.9,3361.3,0.08406915]
[1734975360894,3.73166,3362.1,3361.4,0.815]
[1734975361124,0.7573,3362.1,3361.4,0.815]
[1734975361349,2.97477,3361.6,3361.5,0.08396517]
[1734975361549,2.97503,3361.3,3361.2,0.1699293]
[1734975361754,8.76953167,3361.3,3361.2,0.1699293]
[1734975362051,9.52804049,3361.3,3361.2,0.1699293]
[1734975362212,10.07804049,3361.3,3361.2,9.3e-06]
[1734975362760,6.52521,3361.1,3361.0,9.3e-06]
[1734975362914,8.18553505,3361.1,3361.0,9.3e-06]
[1734975363249,9.00963505,3361.1,3361.0,9.3e-06]
[1734975363536,13.69632664,3361.1,3361.0,9.3e-06]
[1734975363834,9.40881312,3361.1,3361.0,9.3e-06]
[1734975363992,11.91703612,3361.1,3361.0,9.3e-06]
[1734975364195,2.97663,3359.5,3359.1,0.7672]
[1734975364417,2.97675,3359.4,3358.3,0.7541]
[1734975364655,2.76471049,3359.5,3359.2,0.08371448]
[1734975364951,3.79793,3358.8,3358.4,0.08135263]
[1734975365167,3.79793,3358.8,3357.9,1.93559654]
[1734975365168,2.76471049,3358.6,3357.9,0.1699293]
[1734975365301,2.97736,3358.7,3358.5,0.08130055]
[1734975365496,0.379796,3358.6,3357.9,0.1699293]
[1734975365798,2.97796,3358.0,3357.9,0.1699293]
[1734975366760,4.85917974,3358.0,3357.9,0.1699293]
[1734975367057,4.30917974,3358.0,3357.9,0.1699293]
[1734975367288,4.30917974,3358.0,3356.1,4.15738476]
[1734975367289,0.8089,3357.9,3355.7,6.64310692]
[1734975367399,2.97986,3355.9,3354.3,4.15738476]
[1734975367614,2.97986,3355.9,3352.7,2.98265]
[1734975367615,10.85677338,3351.7,3351.4,1.09454939]
[1734975367942,10.85677338,3351.7,3347.6,0.00285]
[1734975367943,0.19796105,3351.0,3350.6,9.33760427]
[1734975368143,2.9844,3350.8,3350.6,5.2706399]
[1734975368306,8.11393986,3350.7,3350.6,5.2706399]
[1734975368511,8.11393986,3350.7,3350.6,0.7938299]
[1734975368512,9.83225455,3350.7,3350.6,0.7938299]
[1734975368727,0.8034,3350.7,3350.6,0.7938299]
[1734975368949,0.49597698,3350.7,3350.6,0.12075999]
[1734975369319,1.17974787,3350.7,3350.6,0.12075999]
[1734975369528,2.98454,3350.6,3350.4,8.05e-06]
[1734975369742,0.03731836,3350.6,3350.4,8.05e-06]
[1734975370044,0.49597698,3350.7,3350.5,0.0597133]
[1734975370374,0.19650625,3350.7,3350.5,0.0597133]
[1734975370866,0.03731339,3351.4,3350.5,0.0597133]
[1734975371078,2.98391,3351.3,3350.5,0.0597133]
[1734975371348,0.18137942,3351.6,3350.5,0.0597133]
[1734975371349,7.20096695,3350.6,3350.5,0.0597133]
[1734975371533,11.293935,3350.9,3350.8,0.05203895]
[1734975371879,0.7733,3352.3,3350.8,0.05203895]
[1734975371880,0.7733,3352.3,3350.9,0.05203895]
[1734975372174,0.03730413,3352.3,3351.3,0.05203895]
[1734975372349,0.03730413,3352.2,3351.3,0.05203895]
[1734975372512,0.03730413,3352.2,3351.2,3.04440455]
[1734975372513,0.03730255,3352.2,3351.7,0.05203895]
[1734975372713,0.19179333,3352.7,3352.1,0.05203895]
[1734975373046,0.19179333,3352.7,3351.9,0.05203895]
[1734975373207,0.19179333,3352.7,3350.3,2.98475]
[1734975373208,0.5,3351.4,3350.3,2.98475]
[1734975373406,0.5,3351.4,3350.1,0.55]
[1734975373668,0.5,3351.4,3350.6,2.98451]
[1734975373817,0.25,3351.3,3350.6,2.98445]
[1734975374017,0.25,3351.3,3350.3,0.55]
[1734975374226,0.25,3350.7,3349.7,2.98529]
[1734975374427,0.5,3350.7,3349.4,3.26294422]
[1734975374626,0.25,3350.5,3349.5,0.05792081]
[1734975374852,0.25,3351.0,3350.3,2.98479]
[1734975375110,0.25,3350.8,3350.4,0.05744968]
[1734975375345,0.25,3350.8,3349.0,3.04440455]
[1734975375550,0.25,3350.6,3350.5,0.05548235]
[1734975375717,0.25,3350.6,3349.8,2.98523]
[1734975375911,0.25,3350.6,3349.1,3.0]
[1734975375912,0.25,3350.0,3349.1,2.98581]
[1734975376116,0.25,3350.0,3348.6,2.94707468]
[1734975376378,0.25,3350.0,3348.7,0.8239]
[1734975376666,0.25,3349.6,3348.7,0.8239]
[1734975376809,0.25,3349.6,3347.9,3.04440455]
[1734975376810,0.25,3349.7,3348.9,2.98603]
[1734975377010,0.25,3349.8,3348.9,2.98603]
[1734975377211,0.25,3349.5,3349.0,0.298603]
[1734975377412,0.25,3349.5,3348.7,2.98618]
[1734975377645,0.25,3349.5,3348.2,2.98667]
[1734975377821,0.25,3349.3,3347.4,3.04440455]
[1734975378021,0.25,3349.0,3348.1,2.98676]
[1734975378231,0.25,3349.0,3347.3,1.17466408]
[1734975378410,0.25,3349.0,3347.9,2.98689]
[1734975378614,0.25,3349.0,3348.1,2.98671]
[1734975378846,0.03732832,3349.5,3347.7,2.98711]
[1734975378847,0.25,3349.2,3347.7,2.98711]
[1734975379108,0.25,3348.4,3347.4,0.41622941]
[1734975379412,0.25,3348.4,3347.5,0.01508432]
[1734975379658,0.5,3349.3,3348.7,2.98621]
[1734975379945,0.5,3349.3,3348.2,2.98667]
[1734975379946,0.25,3349.2,3348.3,2.98655]
[1734975380151,0.25,3349.1,3348.3,2.98655]
[1734975380309,0.25,3349.1,3348.2,0.8102]
[1734975380310,0.25,3349.2,3348.2,0.8102]
[1734975380509,0.215859,3349.7,3348.3,0.01506938]
[1734975380849,0.25,3349.8,3349.1,2.98585]
[1734975381063,0.465859,3350.1,3348.6,2.98632]
[1734975381346,0.215859,3350.1,3349.5,2.98549]
[1734975381556,0.8411,3350.9,3348.7,0.31368254]
[1734975381557,0.465859,3350.5,3349.8,2.9852]
[1734975381722,0.25,3350.0,3349.6,0.05976946]
[1734975382062,0.25,3350.0,3348.9,2.98603]
[1734975382063,0.25,3350.0,3348.8,0.55]
[1734975382262,0.25,3349.8,3349.7,0.0597171]
[1734975382429,0.25,3349.6,3348.7,0.298632]
[1734975382640,0.25,3349.6,3348.3,0.55]
[1734975382837,0.25,3349.6,3348.4,0.01505738]
[1734975383176,0.25,3349.6,3349.1,2.98586]
[1734975383489,0.25,3349.6,3348.3,2.98659]
[1734975383684,0.25,3349.6,3349.3,2.98566]
[1734975383975,0.25,3349.6,3346.6,1.788]
[1734975383976,0.215859,3348.7,3346.9,0.8004]
[1734975384182,0.215859,3348.8,3347.4,2.98739]
[1734975384479,0.25,3348.9,3348.3,2.98657]
[1734975384783,0.215859,3348.8,3347.8,2.98701]
[1734975385081,0.215859,3348.8,3348.5,2.98638]
[1734975385293,0.25,3348.7,3348.2,2.98665]
[1734975385444,0.215859,3348.8,3348.4,2.98648]
[1734975385776,0.25,3349.0,3348.5,0.05830754]
[1734975385982,0.465859,3349.6,3349.0,2.98589]
[1734975386304,0.25,3349.6,3349.1,0.05799324]
[1734975386481,0.25,3349.3,3349.1,0.05799324]
[1734975386646,0.8411,3350.2,3349.1,2.98586]
[1734975386647,0.25,3349.6,3349.1,2.98586]
[1734975386847,0.25,3349.3,3349.2,0.05794087]
[1734975387161,0.215859,3348.5,3347.5,3.40494365]
[1734975387324,0.25,3348.7,3347.1,2.98762]
[1734975387325,0.25,3348.7,3348.2,2.98667]
[1734975387527,0.25,3348.7,3348.2,2.98659]
[1734975387727,0.215859,3348.6,3348.2,2.98659]
[1734975387942,0.215859,3348.6,3347.8,2.98703]
[1734975387943,0.25,3348.7,3348.3,2.98656]
[1734975388146,0.215859,3348.6,3347.6,0.45796077]
[1734975388329,0.215859,3348.6,3347.1,2.98762]
[1734975388330,0.215859,3348.6,3348.2,2.98667]
[1734975388560,0.215859,3348.6,3347.7,0.34452208]
[1734975388741,0.25,3348.7,3347.1,2.98762]
[1734975388742,0.25,3348.7,3348.5,2.98641]
[1734975389183,0.8411,3350.2,3347.8,2.98703]
[1734975389184,0.465859,3349.4,3347.8,2.98703]
[1734975389400,0.25,3348.8,3348.7,2.98623]
[1734975389681,0.25,3349.0,3348.7,2.98622]
[1734975389885,0.03732584,3350.1,3347.9,0.8243]
[1734975389886,0.465859,3348.8,3347.9,3.81119]
[1734975390031,0.25,3349.1,3348.0,0.978379]
[1734975390230,0.8411,3350.2,3348.0,0.978379]
[1734975390231,0.465859,3349.5,3348.3,3.0]
[1734975390532,0.8411,3350.2,3349.5,2.98551]
[1734975390533,0.465859,3349.9,3349.5,2.98551]
[1734975390737,0.25,3349.7,3349.5,2.98551]
[1734975390953,0.215859,3349.3,3348.6,2.98625]
[1734975391238,0.25,3349.4,3349.0,2.98591]
[1734975391447,0.25,3349.3,3349.0,2.98591]
[1734975391649,0.465859,3349.3,3348.8,2.9861]
[1734975391851,0.465859,3349.3,3348.6,5.63393259]
[1734975392735,0.25,3349.3,3349.0,2.9859]
[1734975392931,0.25,3349.3,3348.6,8.62024259]
[1734975393168,0.465859,3349.7,3348.6,6.49595685]
[1734975393482,0.465859,3349.9,3348.6,6.49595685]
[1734975393649,0.465859,3349.9,3348.7,2.98623]
[1734975393994,0.25,3349.4,3348.7,9.29733]
[1734975394290,0.25,3349.4,3348.9,2.98604]
[1734975394631,0.25,3349.4,3348.9,6.3108]
[1734975394864,0.25,3349.4,3348.9,6.94188]
[1734975395062,0.25,3349.4,3349.0,2.98596]